[Event "November 21 Late 2023"]
[Site "https://www.chess.com"]
[Date "2023.11.21"]
[Round "3"]
[White "Muradli, Mahammad"]
[Black "Banzea, Alexandru-Bogdan"]
[Result "1-0"]
[Board "39"]
[TimeControl "180+1"]
[WhiteFideId "13409301"]
[BlackFideId "1232622"]
[WhiteElo "2551"]
[BlackElo "2294"]
[WhiteTeam "AZE"]
[BlackTeam "ROU"]
[WhiteClock "0:00:05"]
[BlackClock "0:00:05"]

1. g3 {[%clk 0:03:00]}  Nf6 {[%clk 0:02:59]} 2. Bg2 {[%clk 0:03:01]}  g6 {[%clk 0:03:00]} 3. b3 {[%clk 0:03:01]}  Bg7 {[%clk 0:02:59]} 4. Bb2 {[%clk 0:03:02]}  d6 {[%clk 0:02:59]} 5. f4 {[%clk 0:03:02]}  O-O {[%clk 0:02:58]} 6. Nf3 {[%clk 0:03:02]}  e5 {[%clk 0:02:51]} 7. fxe5 {[%clk 0:02:58]}  Ng4 {[%clk 0:02:51]} 8. e4 {[%clk 0:02:56]}  Nxe5 {[%clk 0:02:44]} 9. Nxe5 {[%clk 0:02:49]}  Bxe5 {[%clk 0:02:37]} 10. d4 {[%clk 0:02:46]}  Bg7 {[%clk 0:02:34]} 11. O-O {[%clk 0:02:46]}  Nc6 {[%clk 0:02:33]} 12. c3 {[%clk 0:02:46]}  h5 {[%clk 0:02:31]} 13. Nd2 {[%clk 0:02:43]}  h4 {[%clk 0:02:29]} 14. g4 {[%clk 0:02:44]}  Qg5 {[%clk 0:02:12]} 15. h3 {[%clk 0:02:41]}  Bd7 {[%clk 0:01:49]} 16. Kh1 {[%clk 0:02:40]}  Rae8 {[%clk 0:01:31]} 17. Nf3 {[%clk 0:02:39]}  Qd8 {[%clk 0:01:32]} 18. Qd3 {[%clk 0:02:33]}  f5 {[%clk 0:01:23]} 19. exf5 {[%clk 0:02:02]}  gxf5 {[%clk 0:01:24]} 20. g5 {[%clk 0:02:03]}  f4 {[%clk 0:01:19]} 21. Rae1 {[%clk 0:01:52]}  Bf5 {[%clk 0:01:18]} 22. Qd2 {[%clk 0:01:47]}  Be4 {[%clk 0:01:18]} 23. Nxh4 {[%clk 0:01:25]}  d5 {[%clk 0:01:11]} 24. Rxf4 {[%clk 0:01:13]}  Rxf4 {[%clk 0:01:00]} 25. Qxf4 {[%clk 0:01:14]}  Bxg2+ {[%clk 0:00:33]} 26. Nxg2 {[%clk 0:01:15]}  Rxe1+ {[%clk 0:00:31]} 27. Nxe1 {[%clk 0:01:16]}  Qe7 {[%clk 0:00:31]} 28. Qd2 {[%clk 0:01:00]}  Qe4+ {[%clk 0:00:31]} 29. Ng2 {[%clk 0:00:59]}  Ne7 {[%clk 0:00:22]} 30. Ba3 {[%clk 0:00:53]}  Ng6 {[%clk 0:00:17]} 31. Kh2 {[%clk 0:00:35]}  b6 {[%clk 0:00:16]} 32. Qe3 {[%clk 0:00:24]}  Qc2 {[%clk 0:00:17]} 33. Qe6+ {[%clk 0:00:22]}  Kh7 {[%clk 0:00:17]} 34. Qxd5 {[%clk 0:00:22]}  Qxc3 {[%clk 0:00:08]} 35. Qe4 {[%clk 0:00:03]}  Bxd4 {[%clk 0:00:08]} 36. h4 {[%clk 0:00:03]}  Be5+ {[%clk 0:00:09]} 37. Kg1 {[%clk 0:00:03]}  Qa1+ {[%clk 0:00:08]} 38. Kf2 {[%clk 0:00:02]}  Qxa2+ {[%clk 0:00:08]} 39. Kf3 {[%clk 0:00:02]}  Qxa3 {[%clk 0:00:08]} 40. Ne3 {[%clk 0:00:03]}  Qe7 {[%clk 0:00:07]} 41. h5 {[%clk 0:00:02]}  Qf7+ {[%clk 0:00:08]} 42. Ke2 {[%clk 0:00:02]}  Bd6 {[%clk 0:00:08]} 43. hxg6+ {[%clk 0:00:02]}  Qxg6 {[%clk 0:00:08]} 44. Qh4+ {[%clk 0:00:02]}  Kg7 {[%clk 0:00:08]} 45. Qd4+ {[%clk 0:00:03]}  Kg8 {[%clk 0:00:07]} 46. Qd5+ {[%clk 0:00:03]}  Qf7 {[%clk 0:00:07]} 47. Qa8+ {[%clk 0:00:03]}  Kg7 {[%clk 0:00:07]} 48. Qe4 {[%clk 0:00:03]}  Qg6 {[%clk 0:00:05]} 49. Nf5+ {[%clk 0:00:04]}  Kf7 {[%clk 0:00:05]} 50. Nh6+ {[%clk 0:00:04]}  Kg7 {[%clk 0:00:05]} 51. Qd4+ {[%clk 0:00:03]}  Kh7 {[%clk 0:00:05]} 52. Qe3 {[%clk 0:00:02]}  Qg7 {[%clk 0:00:05]} 53. Qe4+ {[%clk 0:00:02]}  Qg6 {[%clk 0:00:04]} 54. Qe3 {[%clk 0:00:03]}  Qg7 {[%clk 0:00:04]} 55. Kf3 {[%clk 0:00:03]}  Qe5 {[%clk 0:00:04]} 56. Qd3+ {[%clk 0:00:03]}  Kg7 {[%clk 0:00:03]} 57. Nf5+ {[%clk 0:00:03]}  Kf8 {[%clk 0:00:03]} 58. Kg4 {[%clk 0:00:02]}  Qf4+ {[%clk 0:00:03]} 59. Kh5 {[%clk 0:00:03]}  Qe5 {[%clk 0:00:02]} 60. Nh6 {[%clk 0:00:02]}  Qe8+ {[%clk 0:00:02]} 61. Kg4 {[%clk 0:00:02]}  Qe6+ {[%clk 0:00:02]} 62. Nf5 {[%clk 0:00:02]}  Qe5 {[%clk 0:00:03]} 63. Qf3 {[%clk 0:00:02]}  Ke8 {[%clk 0:00:02]} 64. g6 {[%clk 0:00:02]}  Qf6 {[%clk 0:00:02]} 65. Kh5 {[%clk 0:00:02]}  Qe5 {[%clk 0:00:02]} 66. Kg5 {[%clk 0:00:02]}  Be7+ {[%clk 0:00:02]} 67. Kg4 {[%clk 0:00:02]}  Qf6 {[%clk 0:00:02]} 68. Qa8+ {[%clk 0:00:02]}  Kd7 {[%clk 0:00:02]} 69. Qd5+ {[%clk 0:00:02]}  Ke8 {[%clk 0:00:02]} 70. Qg8+ {[%clk 0:00:02]}  Kd7 {[%clk 0:00:03]} 71. Qd5+ {[%clk 0:00:02]}  Ke8 {[%clk 0:00:03]} 72. g7 {[%clk 0:00:03]}  Qg6+ {[%clk 0:00:03]} 73. Kf3 {[%clk 0:00:03]}  Bf6 {[%clk 0:00:03]} 74. g8=Q+ {[%clk 0:00:03]}  Qxg8 {[%clk 0:00:04]} 75. Qxg8+ {[%clk 0:00:04]}  Kd7 {[%clk 0:00:05]} 76. Qf7+ {[%clk 0:00:05]}  Kc6 {[%clk 0:00:05]} 77. Qxf6+ {[%clk 0:00:05]} 1-0

[Event "November 21 Late 2023"]
[Site "https://www.chess.com"]
[Date "2023.11.21"]
[Round "3"]
[White "De La Colina, Nicolas"]
[Black "Pranesh M"]
[Result "1-0"]
[Board "40"]
[TimeControl "180+1"]
[WhiteFideId "30946921"]
[BlackFideId "35028600"]
[WhiteElo "2088"]
[BlackElo "2481"]
[WhiteTeam "USA"]
[BlackTeam "IND"]
[WhiteClock "0:00:27"]
[BlackClock "0:00:15"]

1. e4 {[%clk 0:03:00]}  e5 {[%clk 0:02:58]} 2. Nf3 {[%clk 0:03:00]}  Nc6 {[%clk 0:02:57]} 3. Bc4 {[%clk 0:03:01]}  Nf6 {[%clk 0:02:56]} 4. d4 {[%clk 0:03:01]}  exd4 {[%clk 0:02:55]} 5. O-O {[%clk 0:03:01]}  Nxe4 {[%clk 0:02:55]} 6. Re1 {[%clk 0:03:01]}  d5 {[%clk 0:02:56]} 7. Bxd5 {[%clk 0:03:02]}  Qxd5 {[%clk 0:02:56]} 8. Nc3 {[%clk 0:03:03]}  Qa5 {[%clk 0:02:56]} 9. Nxe4 {[%clk 0:03:04]}  Be6 {[%clk 0:02:57]} 10. Neg5 {[%clk 0:03:04]}  O-O-O {[%clk 0:02:57]} 11. Nxe6 {[%clk 0:03:05]}  fxe6 {[%clk 0:02:58]} 12. Rxe6 {[%clk 0:03:04]}  Be7 {[%clk 0:02:58]} 13. Qe1 {[%clk 0:02:49]}  Qc5 {[%clk 0:02:51]} 14. Bf4 {[%clk 0:02:42]}  Bf6 {[%clk 0:02:45]} 15. Qd2 {[%clk 0:02:30]}  Qd5 {[%clk 0:02:15]} 16. Ree1 {[%clk 0:02:19]}  h6 {[%clk 0:01:55]} 17. Bg3 {[%clk 0:02:16]}  g5 {[%clk 0:01:55]} 18. Qd3 {[%clk 0:01:53]}  h5 {[%clk 0:01:52]} 19. h4 {[%clk 0:01:36]}  g4 {[%clk 0:01:44]} 20. Nd2 {[%clk 0:01:33]}  Rhf8 {[%clk 0:01:38]} 21. a3 {[%clk 0:01:29]}  Be5 {[%clk 0:01:25]} 22. Bxe5 {[%clk 0:01:23]}  Nxe5 {[%clk 0:01:26]} 23. Qe4 {[%clk 0:01:23]}  d3 {[%clk 0:01:16]} 24. Qxe5 {[%clk 0:01:10]}  dxc2 {[%clk 0:01:12]} 25. Qxd5 {[%clk 0:01:03]}  Rxd5 {[%clk 0:01:13]} 26. Nf1 {[%clk 0:01:04]}  g3 {[%clk 0:00:45]} 27. fxg3 {[%clk 0:00:55]}  Rb5 {[%clk 0:00:19]} 28. b4 {[%clk 0:00:48]}  a5 {[%clk 0:00:19]} 29. bxa5 {[%clk 0:00:45]}  Rxa5 {[%clk 0:00:14]} 30. Re2 {[%clk 0:00:43]}  Rc5 {[%clk 0:00:10]} 31. Rc1 {[%clk 0:00:43]}  c6 {[%clk 0:00:09]} 32. Rexc2 {[%clk 0:00:44]}  Re5 {[%clk 0:00:08]} 33. Rf2 {[%clk 0:00:40]}  Rfe8 {[%clk 0:00:08]} 34. Nd2 {[%clk 0:00:37]}  Ra5 {[%clk 0:00:08]} 35. Nc4 {[%clk 0:00:36]}  Rc5 {[%clk 0:00:02]} 36. Nd6+ {[%clk 0:00:32]}  Kd7 {[%clk 0:00:03]} 37. Rxc5 {[%clk 0:00:33]}  Re1+ {[%clk 0:00:03]} 38. Kh2 {[%clk 0:00:33]}  Kxd6 {[%clk 0:00:02]} 39. Rxh5 {[%clk 0:00:33]}  Ra1 {[%clk 0:00:03]} 40. Rf3 {[%clk 0:00:33]}  c5 {[%clk 0:00:03]} 41. Rd3+ {[%clk 0:00:32]}  Kc6 {[%clk 0:00:03]} 42. Rf5 {[%clk 0:00:29]}  c4 {[%clk 0:00:04]} 43. Rdd5 {[%clk 0:00:28]}  b6 {[%clk 0:00:02]} 44. h5 {[%clk 0:00:27]}  Rxa3 {[%clk 0:00:02]} 45. h6 {[%clk 0:00:27]}  Ra7 {[%clk 0:00:03]} 46. Rh5 {[%clk 0:00:27]}  c3 {[%clk 0:00:03]} 47. Rd3 {[%clk 0:00:27]}  Rh7 {[%clk 0:00:04]} 48. Rxc3+ {[%clk 0:00:27]}  Kd6 {[%clk 0:00:04]} 49. Rb3 {[%clk 0:00:27]}  Kc7 {[%clk 0:00:05]} 50. Rf3 {[%clk 0:00:26]}  Kb7 {[%clk 0:00:06]} 51. Rf6 {[%clk 0:00:26]}  Ka6 {[%clk 0:00:07]} 52. Rg6 {[%clk 0:00:27]}  Rh8 {[%clk 0:00:07]} 53. Rg7 {[%clk 0:00:27]}  b5 {[%clk 0:00:08]} 54. h7 {[%clk 0:00:28]}  Ka5 {[%clk 0:00:09]} 55. Rg8 {[%clk 0:00:28]}  Rxh7 {[%clk 0:00:09]} 56. Rxh7 {[%clk 0:00:28]}  Kb4 {[%clk 0:00:10]} 57. Rc7 {[%clk 0:00:28]}  Kb3 {[%clk 0:00:11]} 58. Rb8 {[%clk 0:00:29]}  b4 {[%clk 0:00:11]} 59. g4 {[%clk 0:00:29]}  Ka3 {[%clk 0:00:12]} 60. g5 {[%clk 0:00:30]}  b3 {[%clk 0:00:13]} 61. g6 {[%clk 0:00:29]}  Ka2 {[%clk 0:00:13]} 62. g7 {[%clk 0:00:29]}  b2 {[%clk 0:00:14]} 63. g8=Q+ {[%clk 0:00:28]}  Kb1 {[%clk 0:00:15]} 64. Qg6+ {[%clk 0:00:27]}  Ka1 {[%clk 0:00:15]} 65. Ra7# {[%clk 0:00:27]} 1-0

[Event "November 21 Late 2023"]
[Site "https://www.chess.com"]
[Date "2023.11.21"]
[Round "3"]
[White "Remizov, Yaroslav"]
[Black "GatoRojo150"]
[Result "1-0"]
[Board "42"]
[TimeControl "180+1"]
[WhiteFideId "34134015"]
[WhiteElo "2420"]
[BlackElo "2588"]
[WhiteTeam "RUS"]
[WhiteClock "0:01:40"]
[BlackClock "0:00:56"]

1. Nf3 {[%clk 0:03:00]}  d5 {[%clk 0:02:50]} 2. c4 {[%clk 0:03:01]}  e6 {[%clk 0:02:49]} 3. g3 {[%clk 0:03:00]}  c5 {[%clk 0:02:44]} 4. cxd5 {[%clk 0:02:56]}  exd5 {[%clk 0:02:43]} 5. d4 {[%clk 0:02:57]}  Nc6 {[%clk 0:02:44]} 6. Bg2 {[%clk 0:02:57]}  Nf6 {[%clk 0:02:43]} 7. O-O {[%clk 0:02:57]}  cxd4 {[%clk 0:02:21]} 8. Nxd4 {[%clk 0:02:57]}  Bc5 {[%clk 0:02:21]} 9. Nxc6 {[%clk 0:02:35]}  bxc6 {[%clk 0:02:22]} 10. Qc2 {[%clk 0:02:35]}  Qb6 {[%clk 0:01:59]} 11. Nc3 {[%clk 0:02:34]}  Be7 {[%clk 0:01:57]} 12. Be3 {[%clk 0:02:33]}  Qb7 {[%clk 0:01:50]} 13. Rac1 {[%clk 0:02:30]}  O-O {[%clk 0:01:49]} 14. Na4 {[%clk 0:02:30]}  Bd7 {[%clk 0:01:47]} 15. Bc5 {[%clk 0:02:17]}  Bxc5 {[%clk 0:01:34]} 16. Nxc5 {[%clk 0:02:18]}  Qb6 {[%clk 0:01:34]} 17. Nxd7 {[%clk 0:02:16]}  Nxd7 {[%clk 0:01:35]} 18. Qxc6 {[%clk 0:02:16]}  Nf6 {[%clk 0:01:30]} 19. Qxb6 {[%clk 0:02:13]}  axb6 {[%clk 0:01:31]} 20. a3 {[%clk 0:02:14]}  Rfd8 {[%clk 0:01:29]} 21. Rfd1 {[%clk 0:02:11]}  h5 {[%clk 0:01:29]} 22. h3 {[%clk 0:02:04]}  Ra5 {[%clk 0:01:29]} 23. Rd4 {[%clk 0:02:02]}  Rc5 {[%clk 0:01:28]} 24. Rcd1 {[%clk 0:01:59]}  Rc2 {[%clk 0:01:27]} 25. R1d2 {[%clk 0:01:59]}  Rc1+ {[%clk 0:01:18]} 26. Kh2 {[%clk 0:01:59]}  Rb1 {[%clk 0:01:18]} 27. e4 {[%clk 0:01:57]}  Re8 {[%clk 0:01:07]} 28. exd5 {[%clk 0:01:57]}  Ree1 {[%clk 0:01:07]} 29. d6 {[%clk 0:01:57]}  Nd7 {[%clk 0:01:07]} 30. Bc6 {[%clk 0:01:56]}  Ne5 {[%clk 0:01:07]} 31. Bg2 {[%clk 0:01:41]}  h4 {[%clk 0:01:02]} 32. d7 {[%clk 0:01:39]}  hxg3+ {[%clk 0:01:02]} 33. fxg3 {[%clk 0:01:39]}  Nxd7 {[%clk 0:00:56]} 34. Rxd7 {[%clk 0:01:40]} 1-0

[Event "November 21 Late 2023"]
[Site "https://www.chess.com"]
[Date "2023.11.21"]
[Round "3"]
[White "Omariev, Maksim"]
[Black "Hansen, Sune Berg"]
[Result "0-1"]
[Board "46"]
[TimeControl "180+1"]
[WhiteFideId "4193423"]
[BlackFideId "1400266"]
[WhiteElo "2528"]
[BlackElo "2714"]
[WhiteTeam "RUS"]
[BlackTeam "DEN"]
[WhiteClock "0:00:00"]
[BlackClock "0:00:56"]

1. g4 {[%clk 0:03:00]}  d5 {[%clk 0:02:58]} 2. Bg2 {[%clk 0:03:00]}  c6 {[%clk 0:02:59]} 3. h3 {[%clk 0:02:53]}  e5 {[%clk 0:02:56]} 4. d4 {[%clk 0:02:54]}  Nd7 {[%clk 0:02:54]} 5. dxe5 {[%clk 0:02:33]}  Nxe5 {[%clk 0:02:50]} 6. Bf4 {[%clk 0:02:24]}  Ng6 {[%clk 0:02:49]} 7. Bg3 {[%clk 0:02:25]}  Bd6 {[%clk 0:02:47]} 8. Bxd6 {[%clk 0:02:03]}  Qxd6 {[%clk 0:02:45]} 9. Qd4 {[%clk 0:02:02]}  Nf6 {[%clk 0:02:42]} 10. Nc3 {[%clk 0:01:49]}  Qf4 {[%clk 0:02:35]} 11. Qxf4 {[%clk 0:01:05]}  Nxf4 {[%clk 0:02:34]} 12. Bf3 {[%clk 0:01:01]}  h6 {[%clk 0:02:32]} 13. e3 {[%clk 0:00:53]}  Ng6 {[%clk 0:02:23]} 14. O-O-O {[%clk 0:00:54]}  Bd7 {[%clk 0:02:13]} 15. Rh2 {[%clk 0:00:48]}  O-O-O {[%clk 0:02:11]} 16. Nge2 {[%clk 0:00:48]}  Rhe8 {[%clk 0:02:08]} 17. Ng3 {[%clk 0:00:44]}  Ne5 {[%clk 0:02:04]} 18. Bh1 {[%clk 0:00:32]}  Nc4 {[%clk 0:02:00]} 19. Re1 {[%clk 0:00:28]}  Re7 {[%clk 0:01:52]} 20. b3 {[%clk 0:00:24]}  Nd6 {[%clk 0:01:51]} 21. f3 {[%clk 0:00:20]}  Rde8 {[%clk 0:01:50]} 22. Rhe2 {[%clk 0:00:21]}  g6 {[%clk 0:01:40]} 23. Bg2 {[%clk 0:00:20]}  h5 {[%clk 0:01:26]} 24. g5 {[%clk 0:00:15]}  Ng8 {[%clk 0:01:18]} 25. h4 {[%clk 0:00:15]}  Nf5 {[%clk 0:01:14]} 26. Nxf5 {[%clk 0:00:15]}  Bxf5 {[%clk 0:01:14]} 27. Kd2 {[%clk 0:00:08]}  f6 {[%clk 0:01:05]} 28. e4 {[%clk 0:00:07]}  dxe4 {[%clk 0:01:04]} 29. fxe4 {[%clk 0:00:08]}  Bg4 {[%clk 0:01:04]} 30. Rf2 {[%clk 0:00:09]}  fxg5 {[%clk 0:01:03]} 31. hxg5 {[%clk 0:00:09]}  Re5 {[%clk 0:01:02]} 32. Rf7 {[%clk 0:00:01]}  Rxg5 {[%clk 0:01:01]} 33. Ke3 {[%clk 0:00:01]}  Be6 {[%clk 0:01:00]} 34. Rf2 {[%clk 0:00:02]}  Nh6 {[%clk 0:00:59]} 35. Bf3 {[%clk 0:00:01]}  Ng4+ {[%clk 0:00:56]} 36. Bxg4 {[%clk 0:00:01]}  Bxg4 {[%clk 0:00:56]} 37. Ref1 {[%clk 0:00:00]}  Rc5 {[%clk 0:00:56]} 0-1

[Event "November 21 Late 2023"]
[Site "https://www.chess.com"]
[Date "2023.11.21"]
[Round "3"]
[White "Martins, Bruno Andre Leite"]
[Black "Fiorito, Francisco"]
[Result "0-1"]
[Board "47"]
[TimeControl "180+1"]
[WhiteFideId "1942255"]
[BlackFideId "180165"]
[WhiteElo "2307"]
[BlackElo "2318"]
[WhiteTeam "POR"]
[BlackTeam "ARG"]
[WhiteClock "0:00:57"]
[BlackClock "0:01:52"]

1. e4 {[%clk 0:02:50]}  c5 {[%clk 0:02:58]} 2. Nf3 {[%clk 0:02:49]}  Nc6 {[%clk 0:02:57]} 3. d4 {[%clk 0:02:49]}  cxd4 {[%clk 0:02:58]} 4. Nxd4 {[%clk 0:02:49]}  g6 {[%clk 0:02:58]} 5. c4 {[%clk 0:02:46]}  Nf6 {[%clk 0:02:56]} 6. Nc3 {[%clk 0:02:46]}  d6 {[%clk 0:02:55]} 7. f3 {[%clk 0:02:44]}  Nxd4 {[%clk 0:02:55]} 8. Qxd4 {[%clk 0:02:45]}  Bg7 {[%clk 0:02:55]} 9. Be3 {[%clk 0:02:46]}  O-O {[%clk 0:02:54]} 10. Qd2 {[%clk 0:02:47]}  Be6 {[%clk 0:02:54]} 11. Rc1 {[%clk 0:02:45]}  Qa5 {[%clk 0:02:53]} 12. b3 {[%clk 0:02:46]}  Rfc8 {[%clk 0:02:51]} 13. Bd3 {[%clk 0:02:46]}  a6 {[%clk 0:02:45]} 14. Nd5 {[%clk 0:02:44]}  Qxd2+ {[%clk 0:02:43]} 15. Kxd2 {[%clk 0:02:45]}  Bxd5 {[%clk 0:02:39]} 16. cxd5 {[%clk 0:01:57]}  Nd7 {[%clk 0:02:37]} 17. a4 {[%clk 0:01:56]}  Bb2 {[%clk 0:02:35]} 18. Rc4 {[%clk 0:01:53]}  Ne5 {[%clk 0:02:24]} 19. Rxc8+ {[%clk 0:01:49]}  Rxc8 {[%clk 0:02:25]} 20. Bc2 {[%clk 0:01:31]}  Bc3+ {[%clk 0:02:13]} 21. Kd1 {[%clk 0:01:30]}  b5 {[%clk 0:02:08]} 22. axb5 {[%clk 0:01:28]}  axb5 {[%clk 0:02:07]} 23. h3 {[%clk 0:01:23]}  Ra8 {[%clk 0:02:07]} 24. Bc1 {[%clk 0:01:06]}  Ra1 {[%clk 0:02:03]} 25. Ke2 {[%clk 0:01:06]}  b4 {[%clk 0:01:55]} 26. Rf1 {[%clk 0:01:05]}  Nd7 {[%clk 0:01:54]} 27. Be3 {[%clk 0:01:03]}  Ra2 {[%clk 0:01:53]} 28. Kd3 {[%clk 0:00:57]}  Ne5+ {[%clk 0:01:52]} 0-1

[Event "November 21 Late 2023"]
[Site "https://www.chess.com"]
[Date "2023.11.21"]
[Round "3"]
[White "Zeman, Matyas"]
[Black "Firouzja, Alireza"]
[Result "0-1"]
[Board "49"]
[TimeControl "180+1"]
[WhiteFideId "364398"]
[BlackFideId "12573981"]
[WhiteElo "2286"]
[BlackElo "2896"]
[WhiteTeam "CZE"]
[BlackTeam "FRA"]
[WhiteClock "0:00:00"]
[BlackClock "0:00:16"]

1. e4 {[%clk 0:03:00]}  a6 {[%clk 0:03:00]} 2. d4 {[%clk 0:02:53]}  c6 {[%clk 0:03:01]} 3. Nd2 {[%clk 0:02:49]}  d5 {[%clk 0:03:02]} 4. Ngf3 {[%clk 0:02:48]}  dxe4 {[%clk 0:03:01]} 5. Nxe4 {[%clk 0:02:48]}  Bf5 {[%clk 0:03:02]} 6. Bd3 {[%clk 0:02:45]}  e6 {[%clk 0:03:02]} 7. O-O {[%clk 0:02:44]}  Nd7 {[%clk 0:03:01]} 8. Re1 {[%clk 0:02:43]}  Ngf6 {[%clk 0:02:48]} 9. Nxf6+ {[%clk 0:02:33]}  Qxf6 {[%clk 0:02:48]} 10. Bxf5 {[%clk 0:02:32]}  Qxf5 {[%clk 0:02:49]} 11. Qe2 {[%clk 0:02:23]}  Bd6 {[%clk 0:02:45]} 12. Qe4 {[%clk 0:02:19]}  Qd5 {[%clk 0:02:28]} 13. b3 {[%clk 0:02:09]}  Nf6 {[%clk 0:02:14]} 14. Qd3 {[%clk 0:02:03]}  Rd8 {[%clk 0:02:05]} 15. c4 {[%clk 0:02:02]}  Qh5 {[%clk 0:02:04]} 16. Qe2 {[%clk 0:01:54]}  O-O {[%clk 0:02:01]} 17. Bb2 {[%clk 0:01:50]}  Rfe8 {[%clk 0:01:53]} 18. h3 {[%clk 0:01:46]}  Bb4 {[%clk 0:01:51]} 19. Red1 {[%clk 0:01:44]}  h6 {[%clk 0:01:50]} 20. Rd3 {[%clk 0:01:37]}  Bd6 {[%clk 0:01:37]} 21. Rad1 {[%clk 0:01:35]}  Rd7 {[%clk 0:01:30]} 22. Qe3 {[%clk 0:01:11]}  Bc7 {[%clk 0:01:18]} 23. Ne5 {[%clk 0:01:07]}  Bxe5 {[%clk 0:01:18]} 24. Qxe5 {[%clk 0:01:08]}  Red8 {[%clk 0:01:09]} 25. Qxh5 {[%clk 0:01:03]}  Nxh5 {[%clk 0:01:10]} 26. g3 {[%clk 0:00:58]}  Nf6 {[%clk 0:01:10]} 27. Kf1 {[%clk 0:00:56]}  Ne4 {[%clk 0:01:02]} 28. Ke2 {[%clk 0:00:54]}  f5 {[%clk 0:01:00]} 29. Bc1 {[%clk 0:00:42]}  Kf7 {[%clk 0:00:45]} 30. Bf4 {[%clk 0:00:39]}  c5 {[%clk 0:00:24]} 31. Be5 {[%clk 0:00:22]}  cxd4 {[%clk 0:00:23]} 32. Bxd4 {[%clk 0:00:22]}  e5 {[%clk 0:00:23]} 33. Bxe5 {[%clk 0:00:20]}  Rxd3 {[%clk 0:00:22]} 34. Rxd3 {[%clk 0:00:20]}  Rxd3 {[%clk 0:00:23]} 35. Kxd3 {[%clk 0:00:21]}  Nxf2+ {[%clk 0:00:24]} 36. Kd4 {[%clk 0:00:20]}  Nxh3 {[%clk 0:00:24]} 37. Kc5 {[%clk 0:00:20]}  g5 {[%clk 0:00:24]} 38. Kb6 {[%clk 0:00:19]}  f4 {[%clk 0:00:24]} 39. gxf4 {[%clk 0:00:18]}  gxf4 {[%clk 0:00:24]} 40. Kxb7 {[%clk 0:00:16]}  f3 {[%clk 0:00:25]} 41. Bg3 {[%clk 0:00:14]}  f2 {[%clk 0:00:23]} 42. Bxf2 {[%clk 0:00:14]}  Nxf2 {[%clk 0:00:24]} 43. c5 {[%clk 0:00:14]}  Ne4 {[%clk 0:00:23]} 44. c6 {[%clk 0:00:10]}  h5 {[%clk 0:00:21]} 45. c7 {[%clk 0:00:06]}  Nd6+ {[%clk 0:00:21]} 46. Kc6 {[%clk 0:00:03]}  Ke6 {[%clk 0:00:15]} 47. b4 {[%clk 0:00:01]}  h4 {[%clk 0:00:15]} 48. a4 {[%clk 0:00:00]}  h3 {[%clk 0:00:16]} 0-1

[Event "November 21 Late 2023"]
[Site "https://www.chess.com"]
[Date "2023.11.21"]
[Round "3"]
[White "Cristi_Coca"]
[Black "Sarana, Alexey"]
[Result "0-1"]
[Board "52"]
[TimeControl "180+1"]
[BlackFideId "24133795"]
[WhiteElo "2506"]
[BlackElo "2707"]
[BlackTeam "SRB"]
[WhiteClock "0:00:56"]
[BlackClock "0:01:29"]

1. e4 {[%clk 0:03:00]}  e5 {[%clk 0:02:59]} 2. Nf3 {[%clk 0:03:00]}  Nc6 {[%clk 0:02:58]} 3. Bc4 {[%clk 0:03:00]}  Nf6 {[%clk 0:02:57]} 4. d3 {[%clk 0:03:00]}  Bc5 {[%clk 0:02:56]} 5. c3 {[%clk 0:03:01]}  d6 {[%clk 0:02:56]} 6. O-O {[%clk 0:02:59]}  h6 {[%clk 0:02:57]} 7. Re1 {[%clk 0:02:56]}  O-O {[%clk 0:02:57]} 8. h3 {[%clk 0:02:55]}  a5 {[%clk 0:02:57]} 9. Bb3 {[%clk 0:02:56]}  Be6 {[%clk 0:02:56]} 10. Bc2 {[%clk 0:02:55]}  Ba7 {[%clk 0:02:51]} 11. Nbd2 {[%clk 0:02:53]}  Re8 {[%clk 0:02:26]} 12. Nf1 {[%clk 0:02:51]}  d5 {[%clk 0:01:46]} 13. exd5 {[%clk 0:02:43]}  Bxd5 {[%clk 0:01:47]} 14. Ng3 {[%clk 0:02:40]}  Qd7 {[%clk 0:01:47]} 15. Be3 {[%clk 0:02:32]}  Bxe3 {[%clk 0:01:46]} 16. Rxe3 {[%clk 0:02:33]}  Rad8 {[%clk 0:01:45]} 17. Qe2 {[%clk 0:02:31]}  Qd6 {[%clk 0:01:41]} 18. Re1 {[%clk 0:02:29]}  Bxa2 {[%clk 0:01:39]} 19. Nxe5 {[%clk 0:02:23]}  Nxe5 {[%clk 0:01:38]} 20. Rxe5 {[%clk 0:02:23]}  Rxe5 {[%clk 0:01:34]} 21. Qxe5 {[%clk 0:02:24]}  Re8 {[%clk 0:01:34]} 22. Qxe8+ {[%clk 0:02:10]}  Nxe8 {[%clk 0:01:35]} 23. Rxe8+ {[%clk 0:02:10]}  Kh7 {[%clk 0:01:36]} 24. c4 {[%clk 0:01:44]}  Qb4 {[%clk 0:01:32]} 25. d4+ {[%clk 0:01:30]}  g6 {[%clk 0:01:32]} 26. Ne4 {[%clk 0:01:22]}  Kg7 {[%clk 0:01:29]} 27. Nc5 {[%clk 0:00:56]}  Qxb2 {[%clk 0:01:29]} 0-1

[Event "November 21 Late 2023"]
[Site "https://www.chess.com"]
[Date "2023.11.21"]
[Round "3"]
[White "Galchenko, Matvey"]
[Black "Musovic, Armin"]
[Result "1-0"]
[Board "53"]
[TimeControl "180+1"]
[WhiteFideId "24175480"]
[BlackFideId "939935"]
[WhiteElo "2406"]
[BlackElo "2322"]
[WhiteTeam "FID"]
[BlackTeam "MNE"]
[WhiteClock "0:02:09"]
[BlackClock "0:02:02"]

1. e4 {[%clk 0:03:00]}  c6 {[%clk 0:02:55]} 2. d4 {[%clk 0:03:00]}  d5 {[%clk 0:02:55]} 3. exd5 {[%clk 0:03:01]}  cxd5 {[%clk 0:02:56]} 4. Bd3 {[%clk 0:03:02]}  Nc6 {[%clk 0:02:56]} 5. c3 {[%clk 0:03:03]}  Nf6 {[%clk 0:02:56]} 6. h3 {[%clk 0:03:02]}  g6 {[%clk 0:02:55]} 7. Nf3 {[%clk 0:03:01]}  Bg7 {[%clk 0:02:56]} 8. O-O {[%clk 0:03:01]}  O-O {[%clk 0:02:57]} 9. Re1 {[%clk 0:03:01]}  Re8 {[%clk 0:02:57]} 10. Bf4 {[%clk 0:03:01]}  Nd7 {[%clk 0:02:58]} 11. Nbd2 {[%clk 0:03:01]}  e6 {[%clk 0:02:58]} 12. Ne5 {[%clk 0:02:57]}  Ndxe5 {[%clk 0:02:56]} 13. dxe5 {[%clk 0:02:58]}  Bd7 {[%clk 0:02:55]} 14. Nf3 {[%clk 0:02:58]}  Rc8 {[%clk 0:02:55]} 15. Qd2 {[%clk 0:02:57]}  Qc7 {[%clk 0:02:54]} 16. h4 {[%clk 0:02:49]}  h5 {[%clk 0:02:51]} 17. Bh2 {[%clk 0:02:39]}  a6 {[%clk 0:02:49]} 18. Qf4 {[%clk 0:02:38]}  Ne7 {[%clk 0:02:45]} 19. g4 {[%clk 0:02:37]}  hxg4 {[%clk 0:02:44]} 20. Qxg4 {[%clk 0:02:38]}  Nf5 {[%clk 0:02:44]} 21. h5 {[%clk 0:02:37]}  gxh5 {[%clk 0:02:40]} 22. Qxh5 {[%clk 0:02:37]}  Bb5 {[%clk 0:02:26]} 23. Bxf5 {[%clk 0:02:32]}  exf5 {[%clk 0:02:27]} 24. Ng5 {[%clk 0:02:32]}  Re6 {[%clk 0:02:24]} 25. Qh7+ {[%clk 0:02:12]}  Kf8 {[%clk 0:02:24]} 26. Qxf5 {[%clk 0:02:12]}  Rh6 {[%clk 0:02:15]} 27. Bg3 {[%clk 0:02:09]}  Qe7 {[%clk 0:02:02]} 28. Qxc8+ {[%clk 0:02:09]} 1-0